fUSD/lending_fUSD_20240606
["ID","MTS","AMOUNT","RATE_DAILY","PERIOD"]
[328647215,1717668637998,-326.38,0.00012306,2]
[328647216,1717668638103,-837.696,0.00012306,2]
[328647217,1717668638115,-303.29325585,0.00012306,2]
[328647219,1717668638244,-682.11475786,0.00012306,2]
[328647232,1717668640739,-3489.50451544,0.00012306,2]
[328647233,1717668640752,-6645.23705325,0.00012306,2]
[328647234,1717668640761,-545.7,0.00012306,2]
[328647235,1717668640771,-556.0592,0.000139,2]
[328647236,1717668640780,-827.2583,0.000139,2]
[328647237,1717668640791,-2553.45897829,0.000139,2]
[328647238,1717668640800,-175.52586235,0.000139,2]
[328647239,1717668640811,-367.46104775,0.0001399,2]
[328647240,1717668640821,-152.49,0.0001399,2]
[328647241,1717668640830,-210.14590383,0.00013998,2]
[328647242,1717668640839,-165.60444821,0.00013999,2]
[328647243,1717668640850,-133046.7635981,0.00014,2]
[328647244,1717668640861,-2990.00823844,0.00014,2]
[328647245,1717668640873,-5301.01197096,0.00014,2]
[328647246,1717668640884,-1573.74609435,0.00014,2]
[328647247,1717668640903,-20946.94642427,0.00014,2]
[328647248,1717668642432,-359.48000001,0.00014,2]
[328647249,1717668642443,-1047.43920001,0.00014,2]
[328647250,1717668642454,-961.51875694,0.00014,2]
[328647256,1717668643230,-2910.5872,0.00014,2]
[328647257,1717668643242,-3228.42699157,0.00014,2]
[328647258,1717668643253,-6000.72780765,0.00014,2]
[328647259,1717668643264,-1485.64601786,0.00014,2]
[328647260,1717668643312,-496.7432,0.000139,2]
[328647261,1717668643322,-3.2568,0.00014,2]
[328647262,1717668643416,-519.476,0.00014,2]
[328647263,1717668643667,-2095.04719739,0.00014,2]
[328647264,1717668643679,-7411.5435427,0.00014,2]
[328647265,1717668643690,-30152.22885634,0.00014,2]
[328647294,1717668645928,-518.90570714,0.00014,2]
[328647311,1717668646231,-2376.82435001,0.00014,2]
[328647312,1717668646252,-576.99195034,0.00014,2]
[328647313,1717668646270,-1485.11087065,0.00014,2]
[328647322,1717669263226,-500.0,0.0003,40]
[328647323,1717669263248,-500.0,0.0003,40]
[328647325,1717669471599,500.0,0.0003,40]
[328647326,1717669529739,500.0,0.0003,40]
[328647327,1717669683710,-218.26385672,0.00012549,2]
[328647328,1717669683738,-2348.49456156,0.00012648,2]
[328647329,1717669683767,-564.26,0.00012649,2]
[328647330,1717669683795,-380.70037141,0.00013719,2]
[328647331,1717669683823,-2078.66358,0.0001386,2]
[328647332,1717669683847,-500.0,0.00013888,2]
[328647333,1717669683871,-200.0,0.00013888,2]
[328647334,1717669683898,-420.1691,0.000139,2]
[328647335,1717669683926,-169.39271632,0.000139,2]
[328647336,1717669683950,-320.15346603,0.000139,2]
[328647337,1717669683979,-2649.49336644,0.00013961,2]
[328647338,1717669684007,-152.49,0.0001399,2]
[328647339,1717669684033,-343798.53129969,0.00014,2]
[328647354,1717669832341,-2788.0091,0.000139,2]
[328647355,1717669832351,-160.44859826,0.0001391,2]
[328647356,1717669832361,-152.5,0.0001399,2]
[328647357,1717669832372,-1562.05805726,0.00013999,2]
[328647358,1717669832382,-550.08445292,0.00014,2]
[328647359,1717669832393,-406.21879947,0.00014,2]
[328647360,1717669832541,-8561.24858087,0.00014,2]
[328647361,1717669832553,-1845.29162567,0.00014,2]
[328647362,1717669832564,-12080.23518394,0.00014,2]
[328647382,1717669838273,-3088.14941789,0.00014,2]
[328647383,1717669838285,-10043.48,0.00014,2]
[328647384,1717669838301,-3123.53,0.00014,2]
[328647385,1717669838314,-3642.672542,0.00014,2]
[328647386,1717669838326,-5323.6101356,0.00014,2]
[328647387,1717669838338,-2003.21797068,0.00014,2]
[328647388,1717669838350,-1309.44028988,0.00014,2]
[328647389,1717669838362,-19660.40083014,0.00014,2]
[328647390,1717669838463,-122649.62297386,0.00014,2]
[328647391,1717669838475,-498.35828287,0.00014,2]
[328647392,1717669838654,-3793.98626351,0.00014,2]
[328647395,1717669841376,-3561.66984906,0.00014,2]
[328647398,1717669841388,-1730.84596,0.00014,2]
[328647433,1717669843070,-56.72667439,0.00014,2]
[328647434,1717669843081,-861.2,0.00014,2]
[328647435,1717669843163,-12089.35159214,0.00014,2]
[328647436,1717669843174,-44919.01475097,0.00014,2]
[328647438,1717669843186,-10038.03490918,0.00014,2]
[328647440,1717669844148,-3007.65113058,0.00014,2]
[328647441,1717669844160,-9552.62678894,0.00014,2]
[328647442,1717669844172,-823.82510506,0.00014,2]
[328647443,1717669844183,-11815.27960666,0.00014,2]
[328647444,1717669844196,-993.12736041,0.00014,2]
[328647445,1717669844208,-17649.30776945,0.00014,2]
[328647446,1717669844220,-312.17094884,0.00014,2]
[328647447,1717669844233,-485.85127002,0.00014,2]
[328647448,1717669844246,-21421.08937347,0.00014,2]
[328647449,1717669844259,-3600.95857287,0.00014,2]
[328647454,1717669846982,-1065.18041574,0.00014,2]
[328647455,1717669846993,-3194.02004874,0.00014,2]
[328647456,1717669847006,-3053.33113787,0.00014,2]
[328647457,1717670044922,15521.00331248,0.000118,2]
[328647458,1717670047090,-204.501883,0.00030289,120]
[328647459,1717670047118,-1000.0,0.00030289,120]
[328647460,1717670071590,3942.31447469,6.94e-05,2]
[328647467,1717670373965,56981.68221283,6.94e-05,2]
[328647468,1717670373991,15000.0,6.94e-05,2]
[328647469,1717670374016,371952.93011001,6.94e-05,2]
[328647470,1717670402991,150.0,6.94e-05,2]
[328647471,1717670403172,150.0,6.94e-05,2]
[328647472,1717670403365,150.0,6.94e-05,2]
[328647473,1717670403544,150.0,6.94e-05,2]
[328647474,1717670403741,192.44088144,6.94e-05,2]
[328647477,1717670748850,152.80103114,0.0003,40]
[328647478,1717670849426,50000.0,0.0003,40]
[328647484,1717670948115,-164.47,0.00010389,2]
[328647485,1717670948137,-637.20932844,0.00011645,2]
[328647500,1717671032710,-33.15067156,0.00011645,2]
[328647501,1717671032719,-4616.17,0.00013023,2]
[328647502,1717671032731,-1852.42,0.0001311,2]
[328647503,1717671032742,-250.0,0.00013147,2]
[328647504,1717671032752,-150.0,0.00013173,2]
[328647505,1717671032761,-150.0,0.00013263,2]
[328647506,1717671032770,-2226.81659424,0.00013264,2]
[328647507,1717671032784,-4036.36340576,0.00013264,2]
[328647508,1717671032793,-150.0,0.0001337,2]
[328647509,1717671032803,-1687.17019846,0.00013406,2]
[328647510,1717671032815,-354.915,0.00013406,2]
[328647511,1717671032826,-21857.91480154,0.00013406,2]
[328647512,1717671032836,-499.99,0.00013406,2]
[328647513,1717671032847,-299.99,0.00013406,2]
[328647514,1717671032858,-25649.15,0.00013406,2]
[328647515,1717671032867,-1481.41,0.00013422,2]
[328647516,1717671032876,-200.0,0.00013513,2]
[328647517,1717671032886,-447.7,0.00013545,2]
[328647518,1717671032895,-250.0,0.00013595,2]
[328647519,1717671032905,-1929.0,0.000136,2]
[328647520,1717671032914,-2751.0,0.00013699,2]
[328647521,1717671032923,-486.27,0.00013699,2]
[328647522,1717671032932,-1119.0,0.000137,2]
[328647523,1717671032942,-1000.0,0.00013733,2]
[328647524,1717671032952,-1732.21965,0.0001386,2]
[328647525,1717671032962,-2726.38318717,0.00013878,2]
[328647526,1717671032971,-500.0,0.00013887,2]
[328647527,1717671032980,-500.0,0.00013888,2]
[328647529,1717671032989,-200.0,0.00013888,2]
[328647531,1717671032998,-56560.458,0.000139,2]
[328647533,1717671033008,-163.40860426,0.000139,2]
[328647535,1717671033017,-64146.1221,0.000139,2]
[328647537,1717671033026,-192.44681008,0.000139,2]
[328647539,1717671033035,-172.89859462,0.000139,2]
[328647541,1717671033044,-320.89719648,0.000139,2]
[328647543,1717671033053,-3232.94044401,0.000139,2]
[328647545,1717671033062,-670.36,0.00013909,2]
[328647547,1717671033072,-175.20312856,0.0001391,2]
[328647549,1717671033081,-170.1820961,0.0001391,2]
[328647551,1717671033090,-419.58675705,0.00013953,2]
[328647553,1717671033099,-118561.68917258,0.00014,2]
[328647574,1717671038621,-367.18970664,0.00014,2]
[328647575,1717671038634,-16788.22358856,0.00014,2]
[328647576,1717671038647,-6670.00918374,0.00014,2]
[328647577,1717671038661,-1000.0,0.00014,2]
[328647578,1717671039974,-295.08982449,0.00014,2]
[328647581,1717671039986,-4945.53376372,0.00014,2]
[328647583,1717671039998,-857.83662277,0.00014,2]
[328647584,1717671040010,-151488.4140389,0.00014,2]
[328647585,1717671040021,-18905.8148132,0.00014,2]
[328647616,1717671041656,-3238.40322774,0.00014,2]
[328647621,1717671041668,-2391.11629586,0.00014,2]
[328647625,1717671041854,264.0,0.0003,40]
[328647628,1717671043712,-4491.16492254,0.00014,2]
[328647638,1717671044506,-7130.81728599,0.00014,2]
[328647640,1717671044517,-1866.98374795,0.00014,2]
[328647641,1717671044529,-1696.89141431,0.00014,2]
[328647642,1717671046295,-107562.41422078,0.00014,2]
[328647643,1717671046336,-752.24224713,0.00014,2]
[328647644,1717671046414,-274.7021428,0.00014,2]
[328647645,1717671046426,-750.72000001,0.00014,2]
[328647646,1717671046438,-1000.0,0.00014,2]
[328647662,1717671046760,-1704.0047328,0.00014,2]
[328647666,1717671046825,-21248.6822051,0.00014,2]
[328647667,1717671053394,50000.0,0.0003,40]
[328647669,1717671290843,50000.0,0.0003,40]
[328647672,1717671612267,50000.0,0.0003,40]
[328647673,1717671845360,-1000.0,0.00030289,120]
[328647674,1717671885701,1436.54,0.00012832,3]
[328647675,1717672053113,-535.99330686,0.00011542,2]
[328647676,1717672053135,-160.45929932,0.00011543,2]
[328647677,1717672053156,-97.55483876,0.00011544,2]
[328647678,1717672072364,-300.0,0.00031675,120]
[328647683,1717672168095,-1248.84481442,0.00011543,2]
[328647684,1717672168118,-62.90446056,0.00011544,2]
[328647685,1717672168139,-160.45929932,0.00011545,2]
[328647686,1717672168159,-309.95173225,0.00011642,2]
[328647687,1717672168179,-628.96,0.0001181,2]
[328647688,1717672168199,-564.45267529,0.00012259,2]
[328647699,1717672231754,-185.54732471,0.00012259,2]
[328647700,1717672231769,-505.48192709,0.00012583,2]
[328647701,1717672231784,-415.95807291,0.00012583,2]
[328647702,1717672231797,-541.55577053,0.00012698,2]
[328647703,1717672231811,-338.96606307,0.00012699,2]
[328647704,1717672231826,-150.0,0.00012699,2]
[328647705,1717672231839,-35465.53151691,0.000127,2]
[328647706,1717672231854,-23900.0,0.00012701,2]
[328647707,1717672231867,-299.99,0.00012701,2]
[328647708,1717672231880,-165.24,0.00012765,2]
[328647709,1717672231894,-1275.1,0.00012776,2]
[328647710,1717672231908,-499.99,0.00012776,2]
[328647711,1717672231923,-250.0,0.00012824,2]
[328647712,1717672231935,-150.0,0.00012832,2]
[328647713,1717672231945,-103545.84158725,0.00012832,2]
[328647714,1717672231955,-200.0,0.00012866,2]
[328647715,1717672231964,-309.37405224,0.00013281,2]
[328647716,1717672231974,-250.0,0.00013302,2]
[328647717,1717672231983,-243.13,0.00013699,2]
[328647718,1717672231993,-516.2676,0.000138,2]
[328647719,1717672232002,-5133.203,0.000138,2]
[328647720,1717672232012,-41964.7483,0.0001381,2]
[328647721,1717672232027,-529.8646,0.0001381,2]
[328647722,1717672232046,-500.0,0.00013888,2]
[328647723,1717672232059,-200.0,0.00013888,2]
[328647724,1717672232357,-163.40860426,0.000139,2]
[328647725,1717672232370,-382.13509686,0.00013935,2]
[328647726,1717672232380,-153.32,0.0001399,2]
[328647728,1717672232390,-537.34426648,0.00013999,2]
[328647730,1717672232399,-293401.72193906,0.00014,2]
[328647741,1717672232576,-1629.76586371,0.00014,2]
[328647742,1717672232587,-777.15703463,0.00014,2]
[328647743,1717672232598,-737.71400236,0.00014,2]
[328647744,1717672232608,-5927.48332718,0.00014,2]
[328647745,1717672232620,-11316.22703736,0.00014,2]
[328647746,1717672232683,-6827.34329163,0.00014,2]
[328647747,1717672232693,-966.43463374,0.00014,2]
[328647748,1717672232705,-291.71172838,0.00014,2]
[328647749,1717672232716,-20286.76838913,0.00014,2]
[328647750,1717672232725,-93352.19384967,0.00014,2]
[328647751,1717672237800,-4259.9738215,0.00014,2]
[328647752,1717672237812,-2702.22081626,0.00014,2]
[328647753,1717672237824,-516.92626299,0.00014,2]
[328647754,1717672237836,-71086.00000002,0.00014,2]
[328647756,1717672238139,-366.4968852,0.00014,2]
[328647758,1717672238151,-18531.484464,0.00014,2]
[328647759,1717672238163,-10922.95658549,0.00014,2]
[328647760,1717672238176,-259.52130792,0.00014,2]
[328647803,1717672241310,-1733.6193097,0.00014,2]
[328647806,1717672241322,-1323.40927649,0.00014,2]
[328647810,1717672241389,-50100.08652718,0.00014,2]
[328647811,1717672242284,-8413.35640812,0.00014,2]
[328647812,1717672242297,-5956.50683529,0.00014,2]
[328647813,1717672243218,-1552.4745742,0.00014,2]
[328647814,1717672243230,-259.8,0.00014,2]
[328647815,1717672243241,-1192.57468525,0.00014,2]
[328647816,1717672243253,-444.24779552,0.00014,2]
[328647817,1717672243265,-31527.22120152,0.00014,2]
[328647818,1717672243684,-1885.10050633,0.00014,2]
[328647821,1717672243696,-13649.89072362,0.00014,2]
[328647822,1717672243708,-2804.51500556,0.00014,2]
[328647823,1717672243722,-10392.63782424,0.00014,2]
[328647824,1717672243735,-1900.10526795,0.00014,2]
[328647825,1717672243747,-1211.25875993,0.00014,2]
[328647831,1717672247894,-3771.45374406,0.00013999,2]
[328647833,1717672247904,-2452.97025594,0.00014,2]
[328647836,1717672248286,-20053.25301136,0.00014,2]
[328647837,1717672248298,-355.08,0.00014,2]
[328647841,1717672830014,275.0,0.00029,90]
[328647844,1717673277185,575.98,0.000275,120]
[328647848,1717673366109,-2089.37357687,0.00011277,2]
[328647861,1717673432230,-684.35390144,0.00011274,2]
[328647862,1717673432242,-1216.12931524,0.00011274,2]
[328647863,1717673432253,-1260.85014342,0.00011274,2]
[328647864,1717673432263,-429.53862842,0.00011275,2]
[328647865,1717673432273,-150.0,0.00011276,2]
[328647866,1717673432283,-3384.77160162,0.0001128,2]
[328647867,1717673432293,-679.68,0.00011295,2]
[328647868,1717673432302,-250.0,0.00012792,2]
[328647869,1717673432313,-1000.0,0.00012854,2]
[328647870,1717673432323,-200.0,0.00012916,2]
[328647871,1717673432333,-250.0,0.00012916,2]
[328647872,1717673432343,-165.24,0.00012935,2]
[328647873,1717673432352,-535.23,0.00012935,2]
[328647874,1717673432362,-2006.57,0.00012983,2]
[328647875,1717673432371,-2833.03,0.00012983,2]
[328647876,1717673432381,-288.67,0.00012993,2]
[328647877,1717673432391,-23900.0,0.00013041,2]
[328647878,1717673432400,-299.99,0.00013041,2]
[328647879,1717673432410,-499.99,0.00013041,2]
[328647880,1717673432419,-4736.43799831,0.00013532,2]
[328647881,1717673432429,-271.65498901,0.00013533,2]
[328647882,1717673432438,-679.68,0.00013559,2]
[328647883,1717673432448,-1853.99,0.00013699,2]
[328647884,1717673432459,-150.57,0.00013699,2]
[328647885,1717673432468,-265.59,0.00013699,2]
[328647886,1717673432478,-382.37501768,0.0001378,2]
[328647887,1717673432487,-413.52,0.00013809,2]
[328647888,1717673432498,-413.35149323,0.00013811,2]
[328647889,1717673432509,-9348.59390816,0.00013818,2]
[328647890,1717673432527,-155.41968253,0.00013859,2]
[328647891,1717673432538,-26587.81101657,0.0001386,2]
[328647892,1717673432548,-500.0,0.00013888,2]
[328647893,1717673432560,-200.0,0.00013888,2]
[328647894,1717673432574,-930.1819,0.000139,2]
[328647895,1717673432585,-500.0,0.000139,2]
[328647896,1717673432595,-468.5538,0.000139,2]
[328647897,1717673432606,-600.8448,0.000139,2]
[328647898,1717673432617,-201.89046283,0.000139,2]
[328647899,1717673432627,-453.78787986,0.000139,2]
[328647900,1717673432638,-1414.0,0.000139,2]
[328647901,1717673432648,-188.47964545,0.0001399,2]
[328647902,1717673432659,-345.38258781,0.00013998,2]
[328647903,1717673432670,-529.82691404,0.00013998,2]
[328647904,1717673432681,-159.0456061,0.00013998,2]
[328647905,1717673432692,-791.38159288,0.00013998,2]
[328647906,1717673432703,-304.50120173,0.00013998,2]
[328647907,1717673432714,-362.18308999,0.00013998,2]
[328647908,1717673432725,-544.95457193,0.00013998,2]
[328647909,1717673432738,-534.82107433,0.00013998,2]
[328647910,1717673432749,-209.19889504,0.00013998,2]
[328647911,1717673432759,-1497.14333897,0.00013998,2]
[328647912,1717673432770,-5600.01167634,0.00013998,2]
[328647913,1717673432781,-198.88651711,0.00013998,2]
[328647914,1717673432792,-155.0,0.00013998,2]
[328647915,1717673432802,-1479.16396653,0.00013998,2]
[328647916,1717673432812,-9426.54718191,0.00013998,2]
[328647917,1717673432823,-410.74413779,0.00013998,2]
[328647918,1717673432834,-341.50588946,0.00013998,2]
[328647919,1717673432844,-4438.46997973,0.00013998,2]
[328647920,1717673432855,-372.38901499,0.00013998,2]
[328647921,1717673432865,-1265.11365737,0.00013998,2]
[328647922,1717673432876,-364.27737293,0.00013998,2]
[328647923,1717673432886,-156.82169487,0.00013998,2]
[328647924,1717673432896,-205.3803142,0.00013998,2]
[328647925,1717673432907,-1669.98667596,0.00013998,2]
[328647926,1717673432917,-455.12064649,0.00013998,2]
[328647927,1717673432927,-155.71614936,0.00013998,2]
[328647928,1717673432938,-300.14317843,0.00013998,2]
[328647929,1717673432949,-927.84008549,0.00013998,2]
[328647930,1717673432959,-289.77754391,0.00013998,2]
[328647931,1717673432969,-321.83343734,0.00013998,2]
[328647932,1717673432979,-848.89413655,0.00013998,2]
[328647933,1717673432989,-155.78676667,0.00013998,2]
[328647934,1717673433000,-1400.60780106,0.00013998,2]
[328647935,1717673433010,-2847.8793361,0.00013998,2]
[328647936,1717673433021,-635.99793769,0.00013998,2]
[328647937,1717673433032,-480.99346609,0.00013998,2]
[328647938,1717673433042,-269.86542745,0.00013998,2]
[328647939,1717673433052,-170.91273266,0.00013998,2]
[328647940,1717673433063,-2244.62988411,0.00013999,2]
[328647941,1717673433073,-570.50620854,0.00013999,2]
[328647942,1717673433083,-69737.89681137,0.00014,2]
[328647943,1717673433142,-1324.76351156,0.00014,2]
[328647944,1717673433291,-2259.47975856,0.00014,2]
[328647945,1717673433305,-800.0,0.00014,2]
[328647946,1717673433317,-57769.449295,0.00014,2]
[328647947,1717673433330,-1452.08314633,0.00014,2]
[328647948,1717673433342,-628.12349577,0.00014,2]
[328647949,1717673433354,-582.92504737,0.00014,2]
[328647950,1717673433367,-571.61940899,0.00014,2]
[328647951,1717673433379,-909.67996557,0.00014,2]
[328647952,1717673433391,-28786.8919042,0.00014,2]
[328647953,1717673433439,-521.36640746,0.00014,2]
[328647954,1717673433451,-9768.13277904,0.00014,2]
[328647964,1717673438666,-519.27292928,0.00011273,2]
[328647972,1717673441204,-266.57218442,0.00011273,2]
[328647973,1717673441214,-6962.70978771,0.00014,2]
[328647974,1717673441894,-212047.23732737,0.00014,2]
[328647975,1717673441906,-418.37329392,0.00014,2]
[328647976,1717673441918,-103426.61133152,0.00014,2]
[328647977,1717673441928,-19162.33964881,0.00014,2]
[328647978,1717673441938,-1465.62018346,0.00014,2]
[328647979,1717673441948,-2579.4382,0.00014,2]
[328647980,1717673441957,-500.0,0.00014,2]
[328647981,1717673441967,-500.0,0.00014,2]
[328647982,1717673441976,-500.0,0.00014,2]
[328647983,1717673441986,-500.0,0.00014,2]
[328647984,1717673441996,-1000.0,0.00014,2]
[328647985,1717673442007,-3679.574,0.0001401,2]
[328647986,1717673442018,-3644.828,0.0001401,2]
[328647987,1717673442028,-3674.245,0.0001401,2]
[328647988,1717673442038,-3637.333,0.0001401,2]
[328647989,1717673442048,-3671.422,0.0001401,2]
[328647990,1717673442058,-3719.437,0.0001401,2]
[328647991,1717673442068,-172.83,0.0001437,2]
[328647992,1717673442077,-1000.0,0.00014461,2]
[328647993,1717673442088,-422.675431,0.00014521,2]
[328647994,1717673442097,-7002.52635906,0.00015,2]
[328647995,1717673442107,-24630.47402601,0.00015,2]
[328647996,1717673442117,-800.0,0.00015,2]
[328647997,1717673442127,-488.0,0.00015,2]
[328647998,1717673442137,-348.29694263,0.00015,2]
[328647999,1717673442147,-294.65420568,0.00015,2]
[328648000,1717673442156,-422.675431,0.00015342,2]
[328648001,1717673442167,-2006.57,0.00015723,2]
[328648002,1717673442177,-679.68,0.00015823,2]
[328648003,1717673442186,-174.6,0.00015831,2]
[328648004,1717673442196,-1000.0,0.00016068,2]
[328648005,1717673442206,-422.675431,0.00016164,2]
[328648006,1717673442216,-453.78787986,0.00016166,2]
[328648007,1717673442226,-1803.93057379,0.000165,2]
[328648008,1717673442235,-422.675431,0.00016986,2]
[328648009,1717673442245,-7500.0,0.00017125,2]
[328648010,1717673442255,-174.6,0.00017137,2]
[328648011,1717673442266,-164509.46422086,0.00017225,2]
[328648012,1717673442276,-1000.0,0.00017675,2]
[328648013,1717673442286,-422.675431,0.00017808,2]
[328648014,1717673442295,-649.34168046,0.00018,2]
[328648015,1717673442305,-679.68,0.00018086,2]
[328648016,1717673442314,-871.0,0.000182,2]
[328648017,1717673442324,-3093.0,0.000182,2]
[328648018,1717673442333,-453.78787986,0.00018432,2]
[328648019,1717673442345,-174.6,0.00018444,2]
[328648020,1717673442354,-2006.57,0.00018463,2]
[328648021,1717673442364,-500.0,0.000185,2]
[328648022,1717673442374,-3039.91952756,0.00018566,2]
[328648023,1717673442384,-422.675431,0.0001863,2]
[328648024,1717673442394,-298.388,0.00018687,2]
[328648025,1717673442404,-151.0,0.00018687,2]
[328648026,1717673442414,-197.271,0.00018687,2]
[328648027,1717673442423,-150.24,0.00018687,2]
[328648028,1717673442433,-150.0,0.00018687,2]
[328648029,1717673442443,-238.476,0.00018687,2]
[328648030,1717673442453,-150.347,0.00018687,2]
[328648031,1717673442463,-150.0,0.00018687,2]
[328648032,1717673442473,-2123.0,0.00018687,2]
[328648033,1717673442484,-1681.0,0.00018687,2]
[328648034,1717673442494,-529.0,0.00018687,2]
[328648035,1717673442504,-358.0,0.00018687,2]
[328648036,1717673442518,-1580.999,0.00018687,2]
[328648037,1717673442530,-615.0,0.00018687,2]
[328648038,1717673442540,-1267.0,0.00018687,2]
[328648039,1717673442551,-1830.0,0.00018687,2]
[328648040,1717673442562,-1649.0,0.00018687,2]
[328648041,1717673442572,-1064.0,0.00018687,2]
[328648042,1717673442582,-411.24369396,0.00019,2]
[328648043,1717673442593,-2579.43821,0.00019,2]
[328648044,1717673442603,-471.066753,0.00019178,2]
[328648045,1717673442615,-408.14569046,0.00019178,2]
[328648046,1717673442625,-201.88575128,0.00019178,2]
[328648047,1717673442635,-265.59,0.00019178,2]
[328648048,1717673442645,-1000.0,0.00019281,2]
[328648049,1717673442654,-422.675431,0.00019452,2]
[328648050,1717673442664,-1561.1893106,0.0002,2]
[328648051,1717673442674,-345.0,0.0002,2]
[328648052,1717673442684,-257.82046593,0.0002,2]
[328648053,1717673442694,-250.03509864,0.0002,2]
[328648054,1717673442703,-6253.29174589,0.0002,2]
[328648055,1717673442714,-1134.57912358,0.0002,2]
[328648056,1717673442724,-634.94381214,0.0002,2]
[328648057,1717673442735,-1777.58503617,0.0002,2]
[328648058,1717673442746,-156.08857812,0.0002,2]
[328648059,1717673442758,-256.59095034,0.0002,2]
[328648060,1717673442768,-1121.50472689,0.0002,2]
[328648061,1717673442777,-150.0,0.0002,2]
[328648062,1717673442787,-226.60187199,0.000201,2]
[328648063,1717673442797,-422.675431,0.00020274,2]
[328648064,1717673442807,-679.68,0.0002035,2]
[328648065,1717673442817,-150.0,0.000205,2]
[328648066,1717673442827,-453.78787986,0.00020698,2]
[328648067,1717673442838,-150.0,0.00021,2]
[328648068,1717673442848,-422.675431,0.00021096,2]
[328648069,1717673442858,-872.83,0.0002137,2]
[328648070,1717673442868,-833.74,0.0002137,2]
[328648071,1717673442879,-872.83,0.0002137,2]
[328648072,1717673442888,-872.83,0.0002137,2]
[328648073,1717673442898,-872.83,0.0002137,2]
[328648074,1717673442908,-862.11,0.0002137,2]
[328648075,1717673442918,-300.0,0.0002146,2]
[328648076,1717673442928,-150.0,0.000215,3]
[328648077,1717673442939,-3243.31963769,0.00021509,2]
[328648078,1717673442949,-182.45983684,0.00021509,2]
[328648079,1717673442959,-2123.0,0.00021687,2]
[328648080,1717673442970,-1129.739,0.00021687,2]
[328648081,1717673442980,-300.0,0.00021687,2]
[328648082,1717673442990,-384.358,0.00021687,2]
[328648083,1717673443000,-300.0,0.00021742,2]
[328648084,1717673443009,-1111.54,0.00021918,2]
[328648085,1717673443019,-384.27,0.00021918,2]
[328648086,1717673443029,-250.0,0.00021918,2]
[328648087,1717673443039,-422.675431,0.00021918,2]
[328648088,1717673443050,-155.72,0.0002192,2]
[328648089,1717673443060,-155.72,0.0002192,2]
[328648090,1717673443069,-549.09326146,0.00022,2]
[328648091,1717673443079,-150.0,0.00022,3]
[328648092,1717673443089,-300.0,0.00022025,2]
[328648093,1717673443099,-3243.31963759,0.00022272,2]
[328648094,1717673443109,-300.0,0.00022307,2]
[328648095,1717673443120,-500.0,0.00022408,2]
[328648096,1717673443130,-150.0,0.000225,3]
[328648097,1717673443139,-300.0,0.00022589,2]
[328648098,1717673443149,-353.13,0.00022603,2]
[328648099,1717673443159,-150.0,0.00022603,2]
[328648100,1717673443169,-164.06,0.00022603,2]
[328648101,1717673443180,-150.0,0.00022603,2]
[328648102,1717673443190,-314.15,0.00022603,2]
[328648103,1717673443342,-150.0,0.00022603,2]
[328648104,1717673443353,-150.0,0.00022603,2]
[328648105,1717673443363,-164.06,0.00022603,2]
[328648106,1717673443372,-150.0,0.00022603,2]
[328648107,1717673443382,-353.13,0.00022603,2]
[328648108,1717673443392,-150.0,0.00022603,2]
[328648109,1717673443403,-150.0,0.00022603,2]
[328648110,1717673443414,-164.06,0.00022603,2]
[328648111,1717673443423,-351.34,0.00022603,2]
[328648112,1717673443432,-164.06,0.00022603,2]
[328648113,1717673443442,-163.71,0.00022603,2]
[328648114,1717673443452,-679.68,0.00022614,2]
[328648115,1717673443462,-300.0,0.00022872,2]
[328648116,1717673443471,-500.0,0.00022956,2]